bitfinex-derivatives/quotes_ETHF0:USTF0_20240924
["timestamp","ask_amount","ask_price","bid_price","bid_amount"]
[1727146636140,0.3802,2624.2,2623.8,2.68]
[1727146636447,0.3802,2624.2,2623.5,3.58898]
[1727146636448,0.3802,2624.2,2623.5,5.8878]
[1727146636649,0.38114,2623.8,2623.5,5.8878]
[1727146636947,0.38113,2623.9,2623.5,5.8878]
[1727146637846,0.3802,2624.2,2623.5,5.8878]
[1727146638157,0.38114,2623.9,2623.5,5.8878]
[1727146639147,0.38111,2624.0,2623.8,2.68]
[1727146640352,0.38112,2624.0,2623.8,2.68]
[1727146640650,0.38111,2624.0,2623.8,2.68]
[1727146641352,0.3802,2624.2,2623.8,5.8878]
[1727146641353,0.76129,2624.2,2623.8,5.8878]
[1727146641559,0.3802,2624.2,2623.8,6.26893]
[1727146641761,0.76129,2624.2,2623.8,6.26893]
[1727146641948,0.76129,2624.2,2623.8,5.8878]
[1727146642155,0.76129,2624.2,2623.8,6.26894]
[1727146642348,0.76129,2624.2,2623.8,5.8878]
[1727146642552,0.3802,2624.2,2624.0,2.68]
[1727146644261,0.76129,2624.2,2624.0,2.68]
[1727146644447,0.3802,2624.2,2624.0,2.68]
[1727146644750,0.76129,2624.2,2624.0,2.68]
[1727146645150,0.3802,2624.2,2624.0,2.68]
[1727146646660,0.76128,2624.2,2624.0,2.68]
[1727146646959,0.3811,2624.1,2624.0,2.68]
[1727146647649,3.8112,2624.1,2623.8,2.68]
[1727146647858,0.3802,2624.2,2623.8,2.68]
[1727146648348,0.3802,2624.2,2623.7,3.2078]
[1727146649152,0.38113,2623.9,2623.8,2.68]
[1727146649351,0.38112,2624.0,2623.8,2.68]
[1727146649555,0.3811,2624.1,2623.8,2.68]
[1727146649748,0.3811,2624.1,2624.0,2.68]
[1727146650752,0.76129,2624.2,2624.0,2.68]
[1727146652262,0.3811,2624.1,2624.0,2.68]
[1727146656349,0.38111,2624.0,2623.8,2.68]
[1727146656554,2.36890657,2624.1,2623.8,2.68]
[1727146658258,2.36890657,2624.0,2623.8,2.68]
[1727146658951,1.98779657,2623.9,2623.8,2.68]
[1727146659552,2.86586571,2624.0,2623.8,2.68]
[1727146659763,1.99699672,2623.9,2623.8,2.68]
[1727146660069,1.99701255,2623.9,2623.8,2.68]
[1727146660565,2.86586571,2624.0,2623.8,2.68]
[1727146660958,1.99749032,2623.9,2623.8,2.68]
[1727146661158,2.86586571,2624.0,2623.8,2.68]
[1727146661354,0.38112,2624.0,2623.8,2.68]
[1727146661761,2.37865321,2624.0,2623.8,2.68]
[1727146661958,1.99753321,2624.0,2623.8,2.68]
[1727146662257,0.38113,2623.9,2623.8,2.68]
[1727146663257,0.38113,2623.9,2623.7,3.2078]
[1727146663258,0.38114,2623.8,2623.7,3.2078]
[1727146663455,3.12127321,2623.8,2623.7,3.2078]
[1727146663663,1.12374,2623.8,2623.7,3.2078]
[1727146666459,0.7426,2623.8,2623.7,3.2078]
[1727146668473,1.99753321,2623.9,2623.7,3.2078]
[1727146668776,1.99753321,2624.0,2623.8,2.68]
[1727146668971,2.37865321,2624.0,2623.8,2.68]
[1727146669469,1.99753321,2624.0,2623.8,2.68]
[1727146669669,2.86584571,2624.1,2623.8,3.66664228]
[1727146669670,2.37863321,2624.1,2623.8,3.66664228]
[1727146670576,0.38111,2624.0,2623.8,3.66664228]
[1727146670878,1.99753321,2624.0,2623.8,3.66664228]
[1727146671168,0.38113,2623.9,2623.8,3.66664228]
[1727146671369,2.37865321,2624.0,2623.8,3.66664228]
[1727146672165,1.99753321,2624.0,2623.8,3.06113]
[1727146672369,2.37863321,2624.1,2623.8,4.04777228]
[1727146672574,1.99753321,2624.1,2623.8,4.04777228]
[1727146672769,1.99753321,2624.0,2623.8,4.04777228]
[1727146672976,0.3811,2624.1,2623.8,2.68]
[1727146672977,2.37866321,2623.9,2623.8,2.68]
[1727146673172,1.99753321,2623.9,2623.8,2.68]
[1727146674378,1.99753321,2624.0,2623.8,2.68]
[1727146675069,2.37864321,2624.0,2623.8,3.66664228]
[1727146675376,1.99753321,2624.0,2623.8,3.66664228]
[1727146675676,1.99753321,2624.0,2623.8,2.68]
[1727146676273,2.37864321,2624.0,2623.8,3.66664228]
[1727146676575,2.86586571,2624.0,2623.8,2.68]
[1727146677278,2.48474571,2624.0,2623.8,2.68]
[1727146678678,2.48474571,2623.9,2623.8,2.68]
[1727146681075,2.86587571,2623.9,2623.7,3.2078]
[1727146681275,3.66148732,2623.8,2623.7,3.2078]
[1727146681977,0.38118,2623.5,2623.4,3.2078]
[1727146682173,2.88186997,2623.5,2623.4,3.2078]
[1727146682588,0.38118,2623.5,2623.3,2.68]
[1727146682876,2.88172045,2623.4,2623.3,2.68]
[1727146683078,2.50052045,2623.4,2623.3,2.68]
[1727146683277,2.88171045,2623.5,2623.3,2.68]
[1727146683475,2.38106962,2623.5,2623.3,2.68]
[1727146683770,1.99987962,2623.5,2623.3,2.68]
[1727146684869,2.38105962,2623.6,2623.3,2.68]
[1727146685891,0.38119,2623.5,2623.3,2.68]
[1727146686378,0.363,2623.4,2623.3,2.68]
[1727146686891,0.7442,2623.4,2623.3,2.68]
[1727146687592,0.363,2623.4,2623.3,2.68]
[1727146690383,0.363,2623.4,2623.3,1.24]
[1727146692676,0.7442,2623.4,2623.3,1.24]
[1727146693284,0.363,2623.4,2623.3,1.24]
[1727146696383,0.7442,2623.4,2623.3,1.24]
[1727146698093,0.363,2623.4,2623.3,1.24]
[1727146699598,0.7442,2623.4,2623.3,1.24]
[1727146701288,0.7442,2623.4,2622.7,0.98664228]
[1727146701289,12.36802,2623.4,2622.7,0.98664228]
[1727146701489,0.38132,2622.6,2622.5,1.24]
[1727146702297,0.38137,2622.2,2622.0,0.98664228]
[1727146702483,0.38137,2622.2,2621.8,3.453248]
[1727146702484,0.3814,2622.0,2621.8,0.98664228]
[1727146702788,0.38142,2621.9,2621.8,1.24]
[1727146702987,0.38144,2621.8,2621.6,1.24]
[1727146703489,0.38141,2622.0,2621.7,1.24]
[1727146703795,0.3814,2622.0,2621.9,1.24]
[1727146704095,0.3701,2622.1,2621.4,41.18148]
[1727146704285,0.3814,2622.0,2621.6,2.68]
[1727146704494,0.3861,2621.9,2621.6,2.68]
[1727146704887,0.38144,2621.8,2621.6,2.68]
[1727146705294,0.3814,2621.8,2621.4,40.8]
[1727146705601,0.38149,2621.5,2621.3,5.8878]
[1727146705891,0.38147,2621.6,2621.3,46.6878]
[1727146706088,0.38147,2621.6,2621.3,5.8878]
[1727146706595,0.3814,2621.8,2621.3,3.2078]
[1727146706896,0.38149,2621.4,2621.3,3.2078]
[1727146708789,0.38147,2621.6,2621.3,3.2078]
[1727146708991,0.3814,2621.8,2621.3,3.2078]
[1727146709483,0.38147,2621.6,2621.3,3.2078]
[1727146709798,0.38148,2621.5,2621.4,2.68]
[1727146710096,0.38147,2621.6,2621.4,2.68]
[1727146710301,0.38148,2621.5,2621.4,2.68]
[1727146710596,0.3814,2621.8,2621.4,2.68]
[1727146710894,0.38148,2621.5,2621.4,2.68]
[1727146711189,0.38149,2621.4,2621.3,3.2078]
[1727146711395,0.3981,2621.4,2621.3,3.2078]
[1727146711593,0.77959,2621.4,2621.3,3.2078]
[1727146711793,0.3981,2621.4,2621.3,3.2078]
[1727146712391,0.3814,2621.8,2621.3,5.8878]
[1727146712589,0.76283,2621.8,2621.5,2.68]
[1727146712990,0.3814,2621.8,2621.5,2.68]
[1727146713192,0.38145,2621.7,2621.5,2.68]
[1727146713492,0.3814,2621.8,2621.5,2.68]
[1727146713993,0.38145,2621.7,2621.5,2.68]
[1727146714784,0.38145,2621.7,2621.5,43.48]
[1727146715196,0.38145,2621.7,2621.5,2.68]
[1727146715593,0.3814,2621.8,2621.4,40.8]
[1727146715788,0.3814,2621.8,2621.2,5.8878]
[1727146716189,0.3814,2621.8,2621.3,40.8]
[1727146716393,0.38146,2621.6,2621.4,2.68]
[1727146718495,0.3814,2621.8,2621.4,2.68]
[1727146718688,0.38148,2621.5,2621.4,2.68]
[1727146719500,0.38147,2621.6,2621.4,2.68]
[1727146720095,0.3814,2621.8,2621.4,2.68]
[1727146720288,0.3814,2621.8,2621.4,3.06148]
[1727146720596,0.38145,2621.7,2621.4,3.06148]
[1727146720797,0.38147,2621.6,2621.4,2.68]
[1727146721398,0.38148,2621.5,2621.4,2.68]
[1727146722797,0.38149,2621.4,2621.3,40.8]
[1727146723100,0.79399,2621.4,2621.3,40.8]
[1727146723506,0.4125,2621.4,2621.3,40.8]
[1727146723706,0.4125,2621.4,2621.2,5.8878]
[1727146724896,0.4125,2621.4,2621.2,46.6878]
[1727146725291,0.79399,2621.4,2621.2,46.6878]
[1727146725698,0.4125,2621.4,2621.2,46.6878]
[1727146725903,0.38148,2621.5,2621.2,50.88451]
[1727146726105,0.38148,2621.5,2621.4,2.68]
[1727146728308,0.38147,2621.6,2621.4,2.68]
[1727146729314,0.38146,2621.6,2621.4,2.68]
[1727146730204,0.38149,2621.4,2621.2,46.6878]
[1727146730406,0.38149,2621.4,2621.2,47.06932]
[1727146730910,0.38149,2621.4,2621.2,46.6878]
[1727146731103,0.3815,2621.3,2621.2,46.6878]
[1727146731812,0.3815,2621.3,2621.2,5.8878]
[1727146732312,0.3815,2621.3,2621.2,3.2078]
[1727146736616,1.2246,2621.3,2621.2,3.2078]
[1727146739924,0.4233,2621.7,2621.2,5.8878]
[1727146740223,0.3815,2621.4,2621.2,5.8878]
[1727146741616,4.1613,2622.1,2621.3,3.8152]
[1727146741815,4.1613,2622.1,2621.2,5.8878]
[1727146741816,0.38148,2621.5,2621.4,2.68]
[1727146742021,0.45,2621.7,2621.2,5.8878]
[1727146742512,0.38148,2621.5,2621.2,5.8878]
[1727146742816,0.45,2621.7,2621.2,5.8878]
[1727146742817,0.3815,2621.4,2621.2,5.8878]
[1727146743017,0.3815,2621.3,2621.2,5.8878]
[1727146743410,0.4089,2621.4,2621.2,5.8878]
[1727146743716,0.7904,2621.4,2621.2,5.8878]
[1727146744309,0.7904,2621.4,2621.3,1.24]
[1727146746422,0.4089,2621.4,2621.1,1.24]
[1727146746621,0.38154,2621.1,2621.0,1.24]
[1727146746915,0.38153,2621.2,2621.0,1.24]
[1727146747116,0.80053,2621.2,2621.0,1.24]
[1727146748111,0.80053,2621.2,2621.0,2.22664228]
[1727146749313,0.38153,2621.1,2621.0,0.98664228]
[1727146749616,0.38153,2621.1,2620.9,3.2078]
[1727146749617,0.38155,2621.0,2620.9,3.2078]
[1727146749815,0.80885,2621.0,2620.9,3.2078]
[1727146754522,0.4273,2621.0,2620.9,3.2078]
[1727146755120,0.80885,2621.0,2620.9,3.2078]
[1727146758025,0.4273,2621.0,2620.9,3.2078]
[1727146758219,1.99782428,2621.4,2620.9,14.00964228]
[1727146758530,2.81228428,2621.6,2621.3,4.4478]
[1727146758729,2.43082428,2621.6,2621.5,1.24]
[1727146759026,0.433,2621.6,2621.5,1.24]
[1727146760331,1.99782428,2621.7,2621.4,2.68]
[1727146760533,2.49728035,2621.9,2621.6,5.8878]
[1727146760534,0.4489,2621.8,2621.6,5.8878]
[1727146760832,0.83034,2621.8,2621.4,1.58482228]
[1727146761019,0.83034,2621.8,2621.5,40.8]
[1727146761423,0.38145,2621.7,2621.5,40.8]
[1727146761725,0.38145,2621.7,2621.4,0.98664228]
[1727146761932,0.4603,2621.6,2621.3,6.87444228]
[1727146762124,0.4603,2621.6,2621.4,40.8]
[1727146762627,0.84176,2621.6,2621.4,40.8]
[1727146762825,0.4603,2621.6,2621.4,40.8]
[1727146763026,0.4603,2621.6,2621.3,6.87444228]
[1727146763533,0.4603,2621.6,2621.3,48.05594228]
[1727146764634,0.84176,2621.6,2621.3,48.05594228]
[1727146764823,0.4603,2621.6,2621.3,47.67444228]
[1727146765026,0.84177,2621.6,2621.3,47.67444228]
[1727146765336,0.38148,2621.5,2621.3,47.67444228]
[1727146765531,0.38148,2621.5,2621.3,6.87444228]
[1727146765831,0.4603,2621.6,2621.3,6.87444228]
[1727146765832,0.84177,2621.6,2621.3,6.87444228]
[1727146766024,0.469,2621.5,2621.3,6.87444228]
[1727146766420,0.469,2621.5,2621.3,7.25594228]
[1727146767134,0.469,2621.5,2621.3,4.04814228]
[1727146767636,0.469,2621.5,2621.4,3.2078]
[1727146768728,0.85048,2621.5,2621.4,3.2078]
[1727146768928,0.469,2621.5,2621.4,3.2078]
[1727146769831,0.85048,2621.5,2621.4,3.2078]
[1727146772139,0.85048,2621.5,2621.3,3.66664228]
[1727146772533,0.85048,2621.5,2621.3,3.2078]
[1727146772534,0.38148,2621.5,2621.3,3.2078]
[1727146773646,2.39294252,2621.7,2621.3,6.2693]
[1727146773827,1.27495,2621.7,2621.4,0.38149]
[1727146774033,0.38146,2621.6,2621.3,7.25594228]
[1727146774333,0.38146,2621.6,2621.3,6.2693]
[1727146774836,2.77439252,2621.7,2621.4,0.38148]
[1727146775230,1.27495,2621.7,2621.4,0.38148]
[1727146775536,2.77439252,2621.7,2621.4,0.38148]
[1727146776538,1.27495,2621.7,2621.3,6.87444228]
[1727146776733,1.27495,2621.7,2621.4,0.59808]
[1727146776945,0.8935,2621.7,2621.5,0.38147]
[1727146777243,2.39294252,2621.7,2621.5,0.38147]
[1727146777433,1.27495,2621.7,2621.4,0.59808]
[1727146778232,0.38146,2621.6,2621.4,0.59808]
[1727146778428,1.27495,2621.7,2621.5,0.38148]
[1727146778628,0.8935,2621.7,2621.5,0.38148]
[1727146778833,0.4489,2621.8,2621.6,3.2078]
[1727146779040,0.4489,2621.8,2621.6,3.58925]
[1727146779640,0.4489,2621.8,2621.7,0.38145]
[1727146779836,0.4489,2621.8,2621.6,3.2078]
[1727146780238,0.4489,2621.8,2621.6,3.58925]
[1727146781944,0.4489,2621.8,2621.7,0.38145]
[1727146782142,0.4489,2621.8,2621.6,3.2078]
[1727146782143,0.4489,2621.8,2621.6,3.58925]
[1727146782339,0.4489,2621.8,2621.7,1.24]
[1727146785141,0.83033,2621.8,2621.6,3.2078]
[1727146785338,0.4489,2621.8,2621.3,4.19444228]
[1727146785545,0.442,2621.7,2621.5,1.24]
[1727146785953,0.82345,2621.7,2621.5,1.24]
[1727146786547,0.442,2621.7,2621.5,1.62147]
[1727146786746,0.4489,2621.8,2621.6,1.24]
[1727146786950,0.8695,2622.1,2621.7,3.2078]
[1727146787254,0.4327,2622.2,2622.1,0.38139]
[1727146787438,0.4327,2622.2,2622.1,4.19499]
[1727146788042,0.4327,2622.2,2622.1,0.38139]
[1727146790142,0.442,2622.4,2622.1,3.8136]
[1727146790346,0.442,2622.4,2622.3,4.4478]
[1727146790853,0.442,2622.4,2622.3,4.82916]
[1727146791255,0.9001,2622.5,2622.3,4.82916]
[1727146791551,0.9001,2622.5,2622.4,0.38134]
[1727146791958,0.9001,2622.5,2622.3,4.82915]
[1727146792148,0.9001,2622.5,2622.3,45.62915]
[1727146792746,0.9001,2622.5,2622.4,0.38134]
[1727146794343,0.4526,2622.5,2622.4,0.38134]
[1727146794543,0.4565,2622.7,2622.6,0.38132]
[1727146794752,0.4565,2622.7,2622.6,4.82912]
[1727146795155,0.4565,2622.7,2622.6,8.64192]
[1727146796543,0.4565,2622.7,2622.6,8.2606]
[1727146796747,0.4565,2622.7,2622.6,8.64192]
[1727146799157,0.4565,2622.7,2622.6,4.82912]
[1727146799756,0.4626,2622.9,2622.8,0.38129]
[1727146799957,0.4626,2622.9,2622.8,5.43409]
[1727146801258,0.4626,2623.2,2622.8,5.43409]
[1727146801259,0.4626,2623.2,2623.0,0.38126]
[1727146801458,0.4626,2623.2,2623.1,1.24]
[1727146801459,0.9346,2623.2,2623.1,1.24]
[1727146801650,0.9346,2623.2,2623.1,1.62124]
[1727146802054,0.472,2623.2,2623.1,5.43324]
[1727146802258,0.38115,2623.8,2623.1,11.052]
[1727146802569,1.3803,2623.7,2623.5,3.2078]
[1727146802761,1.3803,2623.7,2623.6,0.38117]
[1727146803165,1.3803,2623.7,2623.5,3.58898]
[1727146803362,1.3803,2623.7,2623.5,3.2078]
[1727146803555,0.38117,2623.6,2623.5,3.2078]
[1727146805070,0.38117,2623.6,2623.5,1.7884]
[1727146805268,1.3803,2623.7,2623.2,4.4478]
[1727146805572,4.4478,2623.9,2623.6,1.24]
[1727146805573,0.38113,2623.9,2623.6,1.24]
[1727146805871,0.84915,2623.8,2623.6,1.24]
[1727146806662,0.38116,2623.7,2623.6,1.24]
[1727146807069,0.84915,2623.8,2623.6,1.24]
[1727146807266,0.84915,2623.8,2623.5,1.24]
[1727146807669,0.84915,2623.8,2623.5,1.62118]
[1727146807870,0.84915,2623.8,2623.6,1.24]
[1727146808168,0.468,2623.8,2623.6,1.24]
[1727146808370,0.8749,2623.7,2623.6,1.24]
[1727146809369,0.8749,2623.7,2623.6,1.62117]
[1727146809571,0.8749,2623.7,2623.6,1.24]
[1727146810183,0.4269,2623.7,2623.6,1.62117]
[1727146811168,0.468,2623.8,2623.7,0.38116]
[1727146813384,0.468,2623.8,2623.6,1.62117]
[1727146813584,0.468,2623.8,2623.7,0.38116]
[1727146813778,0.468,2623.8,2623.6,1.62116]
[1727146815587,0.468,2623.8,2623.6,1.62117]
[1727146815890,0.38116,2623.7,2623.5,3.2078]
[1727146816086,0.81267,2623.6,2623.5,3.2078]
[1727146816785,0.4315,2623.6,2623.5,3.2078]
[1727146817284,0.4315,2623.6,2623.5,3.58898]
[1727146818282,0.4315,2623.6,2623.5,3.2078]
[1727146819193,0.4315,2623.6,2623.3,1.24]
[1727146819194,0.38118,2623.5,2623.3,1.24]
[1727146819487,0.814,2623.4,2623.3,1.24]
[1727146819684,1.248,2623.4,2623.3,1.24]
[1727146821294,4.6788,2623.4,2622.9,3.2078]
[1727146821584,0.8668,2623.4,2622.9,4.4478]
[1727146821883,0.8668,2623.4,2623.1,1.24]
[1727146821884,0.38124,2623.2,2623.1,1.24]
[1727146822279,3.6586,2623.9,2623.1,1.24]
[1727146822475,0.4508,2623.3,2622.9,3.8609]
[1727146822678,0.4508,2623.3,2623.0,0.38126]
[1727146822880,0.4508,2623.3,2622.9,3.8609]
[1727146822881,0.4508,2623.3,2623.2,1.24]
[1727146823092,0.9181,2623.3,2623.2,1.24]
[1727146824286,0.9181,2623.3,2623.2,1.62123]
[1727146824485,0.9181,2623.3,2623.2,1.24]
[1727146826083,0.9181,2623.3,2623.2,1.62123]
[1727146826785,0.4419,2623.8,2623.6,0.38116]
[1727146826984,1.46768,2624.3,2623.2,14.2598]
[1727146826985,3.2078,2624.2,2623.7,1.24]
[1727146827187,3.2078,2624.2,2623.8,40.8]
[1727146827188,0.8654,2624.0,2623.8,40.8]
[1727146827489,0.8654,2624.0,2623.9,1.24]
[1727146828182,0.4367,2624.0,2623.9,1.62113]
[1727146828580,0.4367,2624.0,2623.9,1.24]
[1727146828800,0.81781,2624.0,2623.9,1.24]
[1727146829093,4.16044,2624.5,2623.9,1.24]
[1727146829291,0.089,2625.0,2624.4,1.24]
[1727146829493,5.20562428,2625.1,2624.2,3.2078]
[1727146829494,1.3236,2624.9,2624.6,1.62102]
[1727146829689,1.3236,2624.9,2624.6,1.24]
[1727146830291,1.70458,2624.9,2624.6,1.24]
[1727146832089,1.70459,2624.9,2624.6,1.24]
[1727146832293,1.70459,2624.9,2624.5,0.38104]
[1727146832999,0.38102,2624.7,2624.3,0.38106]
[1727146833195,3.2078,2624.8,2624.2,3.06107]
[1727146833497,3.2078,2624.8,2624.1,3.2078]
[1727146833498,0.95257,2624.6,2624.1,3.2078]
[1727146833884,0.95265,2624.4,2623.8,3.2078]
[1727146834082,0.4612,2624.3,2623.8,3.2078]
[1727146834287,0.38112,2624.0,2623.8,3.2078]
[1727146834488,0.4349,2623.9,2623.8,3.2078]
[1727146836195,0.4349,2623.9,2623.7,3.06115]
[1727146836390,0.4349,2623.9,2623.7,6.26895]
[1727146837005,0.4349,2623.9,2623.8,0.38114]
[1727146837296,0.9112,2624.3,2623.7,6.26895]
[1727146837491,5.20562428,2624.4,2624.2,2.68]
[1727146837688,0.38105,2624.5,2624.2,2.68]
[1727146837894,0.4653,2624.7,2624.4,2.68]
[1727146838192,0.38102,2624.6,2624.4,2.68]
[1727146838793,0.38104,2624.5,2624.4,2.68]
[1727146840388,2.95039428,2624.6,2624.0,3.2078]
[1727146840592,1.99782428,2624.6,2624.0,5.8878]
[1727146840900,0.38109,2624.2,2624.0,3.2078]
[1727146841091,0.38108,2624.3,2624.0,5.8878]
[1727146841293,0.4712,2624.2,2624.0,5.8878]
[1727146842395,0.85228,2624.2,2624.0,5.8878]
[1727146842601,0.3811,2624.1,2624.0,2.68]
[1727146842804,1.2701,2624.1,2624.0,2.68]
[1727146846008,0.889,2624.1,2623.8,2.68]
[1727146846304,0.38113,2623.9,2623.8,2.68]
[1727146854521,0.38114,2623.8,2623.7,3.2078]
[1727146854721,0.83184,2623.8,2623.7,3.2078]
[1727146856719,0.38117,2623.6,2623.5,2.68]
[1727146856928,0.38118,2623.5,2623.4,0.462]
[1727146857322,1.40359,2623.8,2623.2,3.2078]
[1727146857323,0.3812,2623.4,2623.2,3.2078]
[1727146857630,0.38121,2623.3,2623.2,3.2078]
[1727146857931,0.38121,2623.3,2623.2,44.0078]
[1727146858114,0.38121,2623.3,2623.2,3.2078]
[1727146859827,0.38126,2623.0,2622.9,2.68]
[1727146860724,3.58906,2623.0,2622.9,2.68]
[1727146861225,0.38129,2622.8,2622.5,2.68]
[1727146861427,0.8898,2622.9,2622.7,2.68]
[1727146861823,1.27108,2622.9,2622.7,2.68]
[1727146862220,0.38129,2622.8,2622.7,2.68]
[1727146862424,0.8898,2622.9,2622.7,2.68]
[1727146862732,0.38129,2622.8,2622.7,2.68]
[1727146862932,1.27108,2622.9,2622.7,2.68]
[1727146864123,0.38129,2622.8,2622.7,2.68]
[1727146864339,1.27108,2622.9,2622.7,2.68]
[1727146864533,0.8898,2622.9,2622.7,2.68]
[1727146865434,0.38129,2622.8,2622.7,2.68]
[1727146870031,1.27107,2622.9,2622.7,2.68]
[1727146870332,0.38129,2622.8,2622.7,2.68]
[1727146870731,0.8898,2622.9,2622.7,2.68]
[1727146870944,3.2078,2623.2,2622.8,3.8128]
[1727146871233,4.082,2623.4,2623.1,3.06124]
[1727146871234,0.4711,2623.4,2623.1,3.06124]
[1727146871435,0.4711,2623.4,2623.2,0.432]
[1727146871735,0.38123,2623.2,2623.1,43.48]
[1727146872331,0.38126,2623.0,2622.9,0.4304]
[1727146872725,0.84065,2623.1,2622.9,0.4304]
[1727146872928,0.4594,2623.1,2622.9,41.2304]
[1727146873129,3.6611,2623.3,2622.9,43.9104]
[1727146873325,4.1205,2623.3,2622.9,43.9104]
[1727146873836,0.38126,2623.0,2622.9,2.68]
[1727146875136,4.1205,2623.3,2622.9,2.68]
[1727146875340,0.38126,2623.0,2622.9,2.68]
[1727146876034,0.38125,2623.1,2622.9,2.68]
[1727146876237,4.1205,2623.3,2622.9,2.68]
[1727146876238,0.38126,2623.0,2622.9,2.68]
[1727146878337,0.38125,2623.1,2622.9,2.68]
[1727146878531,0.38126,2623.0,2622.9,2.68]
[1727146880433,0.38125,2623.1,2622.9,1.24]
[1727146880648,4.1205,2623.3,2622.9,1.24]
[1727146880838,3.2078,2623.3,2623.2,1.24]
[1727146881143,0.4441,2623.7,2623.2,1.24]
[1727146881337,0.4441,2623.7,2623.6,1.24]
[1727146881338,0.82527,2623.7,2623.6,1.24]
[1727146881741,4.63647,2623.7,2623.6,1.24]
[1727146882036,0.82527,2623.7,2623.6,1.24]
[1727146882638,0.82527,2623.7,2623.4,1.24]
[1727146882639,0.38119,2623.5,2623.4,1.24]
[1727146882841,0.38118,2623.6,2623.4,1.24]
[1727146883043,0.4441,2623.7,2623.4,1.24]
[1727146883242,0.84508,2623.5,2623.4,1.24]
[1727146884438,0.3812,2623.4,2623.3,3.153]
[1727146884639,0.84509,2623.5,2623.3,3.153]
[1727146886348,0.3812,2623.4,2623.3,2.68]
[1727146887540,0.38123,2623.2,2622.8,3.06129]
[1727146887741,0.4639,2623.5,2622.8,0.4463]
[1727146887950,0.38127,2622.9,2622.7,3.2078]
[1727146888147,0.4339,2622.8,2622.7,3.2078]
[1727146888351,0.38127,2622.9,2622.7,3.2078]
[1727146888948,0.38129,2622.8,2622.6,3.66664228]
[1727146889155,0.38129,2622.8,2622.6,2.68]
[1727146889356,0.4533,2623.0,2622.6,2.68]
[1727146889357,0.3813,2622.7,2622.6,2.68]
[1727146889655,0.38129,2622.8,2622.6,2.68]
[1727146890340,0.4533,2623.0,2622.6,2.68]
[1727146890543,0.38129,2622.8,2622.6,2.68]
[1727146891452,1.49538592,2623.2,2622.7,3.2078]
[1727146891649,0.81585,2623.1,2622.9,2.68]
[1727146891849,0.38126,2623.0,2622.9,2.68]
[1727146892552,0.38127,2622.9,2622.7,5.8878]
[1727146892952,0.38129,2622.8,2622.7,2.68]
[1727146893152,0.38126,2623.0,2622.7,2.68]
[1727146893549,3.2078,2623.0,2622.3,7.25594228]
[1727146893955,4.70318592,2623.0,2622.3,47.0693]
[1727146894252,0.3813,2622.7,2622.3,47.0693]
[1727146894446,0.8709,2622.6,2622.3,46.6878]
[1727146894652,1.3387,2622.6,2622.3,46.6878]
[1727146894846,1.72002,2622.6,2622.3,46.6878]
[1727146895159,1.3387,2622.6,2622.3,46.6878]
[1727146898952,3.2078,2623.0,2622.5,2.68]
[1727146899253,0.4592,2622.9,2622.6,3.6773]
[1727146899455,0.4592,2622.9,2622.6,4.1364]
[1727146899654,0.4592,2622.9,2622.7,40.8]
[1727146899965,0.4592,2622.9,2622.6,4.1364]
[1727146900357,0.4592,2622.9,2622.6,44.9364]
[1727146901163,0.4592,2622.9,2622.6,4.1364]
[1727146903056,0.4592,2622.9,2622.6,4.51771]
[1727146903256,0.4592,2622.9,2622.6,4.1364]
[1727146903455,0.4592,2622.9,2622.6,4.573]
[1727146903664,0.4592,2622.9,2622.6,4.1364]
[1727146909765,0.4592,2622.9,2622.6,4.51771]
[1727146910280,0.4592,2622.9,2622.8,1.24]
[1727146912269,4.272,2622.9,2622.6,3.2078]
[1727146912472,0.4592,2622.9,2622.6,3.2078]
[1727146912665,0.38129,2622.8,2622.6,3.2078]
[1727146912866,0.3813,2622.7,2622.5,1.24]
[1727146913971,3.8128,2622.6,2622.1,4.19444228]
[1727146914176,0.38137,2622.3,2622.1,3.2078]
[1727146914377,0.9013,2622.5,2622.1,3.2078]
[1727146914566,0.9013,2622.5,2622.2,1.24]
[1727146914874,0.9013,2622.5,2622.2,1.62137]
[1727146915576,0.9013,2622.5,2622.2,1.24]
[1727146915962,0.9013,2622.5,2622.2,1.62137]
[1727146916166,0.9013,2622.5,2622.4,1.24]
[1727146916973,4.7149,2622.5,2622.2,0.4726]
[1727146917182,0.9013,2622.5,2622.3,1.24]
[1727146917579,0.9013,2622.5,2622.1,3.2078]
[1727146917766,0.38137,2622.2,2622.1,3.2078]
[1727146917971,0.38137,2622.2,2622.1,4.4478]
[1727146918373,0.38132,2622.6,2622.2,0.38137]
[1727146918582,3.58911,2622.7,2622.4,1.24]
[1727146918876,3.2078,2622.7,2622.6,1.24]
[1727146919077,1.2612,2622.8,2622.6,1.24]
[1727146919078,1.99782428,2622.9,2622.6,1.24]
[1727146919290,2.49728035,2623.1,2622.8,1.24]
[1727146919291,2.87042428,2623.1,2622.8,1.24]
[1727146919477,0.38126,2623.0,2622.8,1.24]
[1727146920275,1.25385,2623.1,2622.8,1.24]
[1727146920780,0.8726,2623.1,2622.8,1.24]